fUSD/lending_fUSD_20260128
["ID","MTS","AMOUNT","RATE_DAILY","PERIOD"]
[403859393,1769605839860,-500.0,0.00014008,2]
[403859395,1769605839870,-500.0,0.00014008,2]
[403859397,1769605839880,-500.0,0.00014008,2]
[403859399,1769605839889,-500.0,0.00014008,2]
[403859400,1769605839899,-500.0,0.00014008,2]
[403859403,1769605839908,-500.0,0.00014008,2]
[403859404,1769605839919,-500.0,0.00014008,2]
[403859406,1769605839929,-151.0,0.00014008,2]
[403859408,1769605839939,-151.0,0.00014008,2]
[403859411,1769605839949,-151.0,0.00014008,2]
[403859412,1769605839959,-151.0,0.00014008,2]
[403859415,1769605839969,-151.0,0.00014008,2]
[403859417,1769605839979,-151.0,0.00014008,2]
[403859419,1769605839989,-151.0,0.00014008,2]
[403859421,1769605839999,-151.0,0.00014008,2]
[403859423,1769605840008,-151.0,0.00014008,2]
[403859424,1769605840017,-151.0,0.00014008,2]
[403859426,1769605840027,-151.0,0.00014008,2]
[403859429,1769605840037,-200.0,0.00014008,2]
[403859431,1769605840047,-250.0,0.0001401,2]
[403859433,1769605840056,-500.0,0.0001401,2]
[403859434,1769605840067,-195.0,0.00014011,2]
[403859437,1769605840077,-1378.93843522,0.00014011,2]
[403859439,1769605840087,-500.0,0.00014012,2]
[403859441,1769605840096,-195.0,0.00014015,2]
[403859443,1769605840106,-296.2237933,0.00014015,2]
[403859445,1769605840115,-600.0,0.00014016,2]
[403859447,1769605840125,-300.0,0.00014016,2]
[403859449,1769605840135,-500.0,0.00014016,2]
[403859450,1769605840144,-500.0,0.00014016,2]
[403859452,1769605840154,-500.0,0.00014016,2]
[403859454,1769605840164,-192.04100038,0.00014016,2]
[403859456,1769605840174,-1000.0,0.00014018,2]
[403859458,1769605840185,-514.39,0.00014018,2]
[403859460,1769605840199,-299.99,0.00014018,2]
[403859462,1769605840209,-9999.99,0.00014018,2]
[403859465,1769605840219,-999.99,0.00014018,2]
[403859467,1769605840228,-150.99,0.00014018,2]
[403859468,1769605840238,-7540.41,0.00014018,2]
[403859470,1769605840247,-8938.11,0.00014018,2]
[403859473,1769605840256,-201.55532227,0.00014057,2]
[403859475,1769605840268,-300.0,0.00014057,2]
[403859477,1769605840278,-304.15211774,0.00014057,2]
[403859479,1769605840287,-515.28066526,0.00014117,2]
[403859481,1769605840297,-500.0,0.00014117,2]
[403859483,1769605840307,-500.0,0.00014117,2]
[403859485,1769605840318,-500.0,0.00014117,2]
[403859487,1769605840327,-500.0,0.00014117,2]
[403859489,1769605840337,-500.0,0.00014117,2]
[403859491,1769605840347,-500.0,0.00014117,2]
[403859493,1769605840356,-500.0,0.00014117,2]
[403859495,1769605840366,-500.0,0.00014117,2]
[403859496,1769605840375,-500.0,0.00014117,2]
[403859499,1769605840386,-194.156488,0.00014117,2]
[403859520,1769605840792,-500.0,0.00014117,2]
[403859521,1769605840821,-500.0,0.00014117,2]
[403859522,1769605840830,-500.0,0.00014117,2]
[403859523,1769605840840,-500.0,0.00014117,2]
[403859524,1769605840849,-500.0,0.00014117,2]
[403859525,1769605840858,-500.0,0.00014117,2]
[403859526,1769605840867,-563.52650006,0.00014117,2]
[403859527,1769605840876,-500.0,0.00014117,2]
[403859528,1769605840886,-326.23818299,0.00014117,2]
[403859529,1769605840895,-450.91238715,0.00014117,2]
[403859530,1769605840904,-500.0,0.00014117,2]
[403859531,1769605840914,-500.0,0.00014117,2]
[403859532,1769605840928,-500.0,0.00014117,2]
[403859533,1769605840937,-385.18354163,0.00014117,2]
[403859534,1769605840947,-500.0,0.00014117,2]
[403859535,1769605840957,-500.0,0.00014117,2]
[403859536,1769605840966,-500.0,0.00014117,2]
[403859537,1769605840976,-327.49083589,0.00014117,2]
[403859538,1769605840985,-370.45918944,0.00014117,2]
[403859539,1769605840995,-500.0,0.00014117,2]
[403859540,1769605841004,-500.0,0.00014117,2]
[403859541,1769605841013,-502.09877135,0.00014117,2]
[403859542,1769605841023,-500.0,0.00014117,2]
[403859543,1769605841032,-502.09877135,0.00014117,2]
[403859544,1769605841042,-500.0,0.00014117,2]
[403859545,1769605841051,-500.0,0.00014117,2]
[403859546,1769605841061,-500.0,0.00014117,2]
[403859547,1769605841072,-500.0,0.00014117,2]
[403859548,1769605841081,-519.88726717,0.00014117,2]
[403859549,1769605841091,-642.98,0.00014117,2]
[403859550,1769605841100,-500.0,0.00014117,2]
[403859551,1769605841110,-500.0,0.00014117,2]
[403859552,1769605841120,-500.0,0.00014117,2]
[403859553,1769605841130,-500.0,0.00014117,2]
[403859554,1769605841139,-500.0,0.00014117,2]
[403859555,1769605841149,-500.0,0.00014117,2]
[403859556,1769605841159,-500.0,0.00014117,2]
[403859557,1769605841168,-500.0,0.00014285,2]
[403859558,1769605841178,-1309.5,0.00014289,2]
[403859559,1769605841188,-971.36560573,0.00014379,2]
[403859560,1769605841205,-2987.85380606,0.00014426,2]
[403859561,1769605841216,-1852.42,0.00014427,2]
[403859562,1769605841225,-493935.76,0.0001444,2]
[403859563,1769605841235,-2371.08,0.00014526,2]
[403859564,1769605841244,-200.0,0.00014556,2]
[403859565,1769605841253,-500.0,0.00014556,2]
[403859566,1769605841263,-200.0,0.00014556,2]
[403859567,1769605841272,-500.0,0.00014559,2]
[403859568,1769605841284,-1309.5,0.00014563,2]
[403859569,1769605841293,-1394.0,0.00014652,2]
[403859570,1769605841303,-67967.62653391,0.00014674,2]
[403859571,1769605841312,-819.0,0.00014681,2]
[403859572,1769605841322,-569.0,0.00014771,2]
[403859573,1769605841331,-447.0,0.00014771,2]
[403859574,1769605841341,-1183.0,0.00014801,2]
[403859575,1769605841350,-326.0,0.00014801,2]
[403859576,1769605841359,-275.4620376,0.0001483,2]
[403859577,1769605841369,-500.0,0.00014833,2]
[403859578,1769605841378,-1309.5,0.00014837,2]
[403859579,1769605841388,-151.0,0.00014979,2]
[403859580,1769605841397,-151.0,0.00014979,2]
[403859581,1769605841407,-151.0,0.00014988,2]
[403859582,1769605841416,-151.0,0.00014988,2]
[403859583,1769605841425,-151.0,0.00014996,2]
[403859584,1769605841434,-151.0,0.00014996,2]
[403859585,1769605841444,-151.0,0.00015001,2]
[403859586,1769605841454,-5897.91,0.00015051,2]
[403859587,1769605841463,-308.32,0.00015068,2]
[403859588,1769605841472,-200.0,0.00015104,2]
[403859589,1769605841482,-500.0,0.00015104,2]
[403859590,1769605841491,-500.0,0.00015107,2]
[403859591,1769605841500,-1309.5,0.00015111,2]
[403859592,1769605841510,-255.0,0.00015127,2]
[403859593,1769605841520,-2371.08,0.00015217,2]
[403859594,1769605841529,-200.0,0.00015279,2]
[403859595,1769605841539,-300.0,0.00015307,2]
[403859596,1769605841549,-195.0,0.00015307,2]
[403859597,1769605841558,-2500.0,0.00015307,2]
[403859598,1769605841569,-1680.0,0.00015307,2]
[403859599,1769605841580,-4612.24,0.00015321,2]
[403859600,1769605841590,-300.0,0.00015345,2]
[403859601,1769605841599,-150.00184448,0.00015374,2]
[403859602,1769605841610,-2563.44920202,0.00015379,2]
[403859603,1769605841620,-500.0,0.00015381,2]
[403859604,1769605841629,-1309.5,0.00015385,2]
[403859605,1769605841639,-4838.53,0.00015394,2]
[403859606,1769605841648,-250.0,0.000154,2]
[403859607,1769605841658,-193.0,0.00015407,2]
[403859608,1769605841667,-500.0,0.00015407,2]
[403859609,1769605841676,-5000.0,0.00015407,2]
[403859610,1769605841686,-195.0,0.00015409,2]
[403859611,1769605841696,-2500.0,0.00015409,2]
[403859612,1769605841706,-250.0,0.00015409,2]
[403859613,1769605841716,-312.04846329,0.00015409,2]
[403859614,1769605841727,-500.0,0.00015409,2]
[403859615,1769605841737,-291.34094579,0.00015417,2]
[403859616,1769605841746,-600.0,0.00015417,2]
[403859617,1769605841756,-300.0,0.00015417,2]
[403859618,1769605841766,-733.90505123,0.00015486,2]
[403859619,1769605841775,-807.02,0.00015552,2]
[403859620,1769605841784,-200.0,0.00015652,2]
[403859621,1769605841794,-500.0,0.00015652,2]
[403859622,1769605841803,-500.0,0.00015655,2]
[403859623,1769605841812,-1309.5,0.00015659,2]
[403859624,1769605841822,-2371.08,0.00015909,2]
[403859625,1769605841832,-1000.0,0.00015918,2]
[403859626,1769605841841,-500.0,0.00015929,2]
[403859627,1769605841850,-1309.5,0.00015933,2]
[403859628,1769605841860,-212.43,0.0001596,2]
[403859629,1769605841869,-212.01,0.00015964,2]
[403859630,1769605841880,-9999.99,0.00016116,2]
[403859631,1769605841890,-300.52698648,0.000162,2]
[403859632,1769605841899,-500.0,0.000162,2]
[403859633,1769605841908,-500.0,0.000162,2]
[403859634,1769605841918,-500.0,0.00016203,2]
[403859635,1769605841927,-1309.5,0.00016207,2]
[403859636,1769605841936,-224.05272152,0.00016317,2]
[403859637,1769605841946,-433.0,0.00016332,2]
[403859638,1769605841956,-500.0,0.00016373,2]
[403859639,1769605841965,-500.0,0.00016373,2]
[403859640,1769605841974,-500.0,0.00016373,2]
[403859641,1769605841983,-502.78879497,0.00016373,2]
[403859642,1769605841992,-173.57092729,0.00016373,2]
[403859643,1769605842002,-501.12606319,0.00016373,2]
[403859644,1769605842011,-500.0,0.00016373,2]
[403859645,1769605842020,-500.0,0.00016373,2]
[403859646,1769605842030,-500.0,0.00016373,2]
[403859647,1769605842039,-500.0,0.00016373,2]
[403859648,1769605842048,-160.17647728,0.00016373,2]
[403859649,1769605842057,-500.0,0.00016373,2]
[403859650,1769605842067,-157.93572848,0.00016373,2]
[403859651,1769605842076,-500.0,0.00016373,2]
[403859652,1769605842086,-500.0,0.00016373,2]
[403859653,1769605842095,-500.0,0.00016373,2]
[403859654,1769605842104,-539.78935463,0.00016373,2]
[403859655,1769605842114,-500.0,0.00016373,2]
[403859656,1769605842123,-160.1775309,0.00016373,2]
[403859657,1769605842132,-500.0,0.00016373,2]
[403859658,1769605842141,-500.0,0.00016373,2]
[403859659,1769605842151,-500.0,0.00016373,2]
[403859660,1769605842160,-500.61015295,0.00016373,2]
[403859661,1769605842169,-156.16956457,0.00016373,2]
[403859662,1769605842179,-500.0,0.00016373,2]
[403859663,1769605842188,-500.0,0.00016373,2]
[403859664,1769605842198,-500.0,0.00016373,2]
[403859665,1769605842210,-162.9653214,0.00016373,2]
[403859666,1769605842220,-500.45700861,0.00016373,2]
[403859667,1769605842231,-500.0,0.00016373,2]
[403859668,1769605842240,-500.0,0.00016373,2]
[403859669,1769605842249,-500.0,0.00016373,2]
[403859670,1769605842259,-500.78720645,0.00016373,2]
[403859671,1769605842268,-500.0,0.00016373,2]
[403859672,1769605842278,-500.0,0.00016373,2]
[403859673,1769605842288,-500.0,0.00016373,2]
[403859674,1769605842297,-500.0,0.00016373,2]
[403859675,1769605842306,-500.0,0.00016373,2]
[403859676,1769605842317,-500.0,0.00016373,2]
[403859678,1769605842327,-500.85593286,0.00016373,2]
[403859679,1769605842337,-500.0,0.00016373,2]
[403859681,1769605842347,-500.0,0.00016373,2]
[403859683,1769605842356,-500.0,0.00016373,2]
[403859685,1769605842366,-500.0,0.00016438,2]
[403859686,1769605842377,-500.0,0.00016438,2]
[403859687,1769605842386,-450.03978437,0.00016438,2]
[403859688,1769605842396,-500.0,0.00016438,2]
[403859689,1769605842406,-583.89977283,0.00016438,2]
[403859690,1769605842416,-500.0,0.00016438,2]
[403859691,1769605842426,-500.0,0.00016438,2]
[403859692,1769605842436,-500.0,0.00016438,2]
[403859693,1769605842445,-500.0,0.00016438,2]
[403859694,1769605842454,-500.0,0.00016438,2]
[403859695,1769605842464,-500.0,0.00016438,2]
[403859696,1769605842473,-500.0,0.00016438,2]
[403859697,1769605842483,-500.0,0.00016438,2]
[403859698,1769605842492,-500.0,0.00016438,2]
[403859699,1769605842503,-500.0,0.00016438,2]
[403859700,1769605842513,-500.0,0.00016438,2]
[403859701,1769605842523,-500.0,0.00016438,2]
[403859702,1769605842533,-500.0,0.00016438,2]
[403859703,1769605842543,-500.0,0.00016438,2]
[403859705,1769605842552,-500.0,0.00016438,2]
[403859707,1769605842561,-500.0,0.00016438,2]
[403859708,1769605842572,-500.0,0.00016438,2]
[403859709,1769605842581,-500.0,0.00016438,2]
[403859710,1769605842591,-500.0,0.00016438,2]
[403859711,1769605842600,-500.0,0.00016438,2]
[403859712,1769605842610,-500.0,0.00016438,2]
[403859713,1769605842620,-500.0,0.00016438,2]
[403859714,1769605842629,-576.58863261,0.00016438,2]
[403859715,1769605842638,-500.0,0.00016438,2]
[403859716,1769605842648,-500.0,0.00016438,2]
[403859717,1769605842657,-500.0,0.00016438,2]
[403859718,1769605842667,-500.0,0.00016438,2]
[403859719,1769605842676,-500.0,0.00016438,2]
[403859720,1769605842687,-500.0,0.00016438,2]
[403859721,1769605842696,-500.0,0.00016438,2]
[403859722,1769605842706,-544.60815205,0.00016438,2]
[403859723,1769605842717,-500.0,0.00016438,2]
[403859724,1769605842726,-578.39080156,0.00016438,2]
[403859725,1769605842736,-308.32,0.00016438,2]
[403859726,1769605842745,-716.83533481,0.00016438,2]
[403859727,1769605842754,-165.37,0.0001644,2]
[403859728,1769605842763,-500.0,0.00016477,2]
[403859729,1769605842772,-1309.5,0.00016481,2]
[403859730,1769605842782,-1000.0,0.00016515,2]
[403859731,1769605842792,-2371.08,0.00016601,2]
[403859732,1769605842801,-165.88,0.00016712,2]
[403859733,1769605842811,-207.4,0.00016747,2]
[403859734,1769605842823,-500.0,0.00016748,2]
[403859735,1769605842832,-500.0,0.00016751,2]
[403859736,1769605842842,-1309.5,0.00016755,2]
[403859737,1769605842851,-150.00184448,0.00016787,2]
[403859738,1769605842861,-2351.0,0.00016837,2]
[403859739,1769605842871,-182.56648431,0.00016839,2]
[403859740,1769605842880,-1000.0,0.00016921,2]
[403859741,1769605842889,-963.7080185,0.00016921,2]
[403859742,1769605842898,-1000.0,0.00016921,2]
[403859743,1769605842908,-1000.0,0.00016921,2]
[403859744,1769605842917,-1000.0,0.00016921,2]
[403859745,1769605842927,-1000.0,0.00016921,2]
[403859746,1769605842937,-1000.0,0.00016921,2]
[403859747,1769605842947,-1000.0,0.00016921,2]
[403859748,1769605842957,-1000.0,0.00016921,2]
[403859749,1769605842967,-1000.0,0.00016921,2]
[403859750,1769605842977,-678.28326226,0.00016921,2]
[403859751,1769605842986,-1000.0,0.00016921,2]
[403859752,1769605842996,-500.0,0.00016921,2]
[403859753,1769605843006,-848.0638206,0.00016921,2]
[403859754,1769605843015,-156.08135925,0.00016921,2]
[403859755,1769605843025,-1000.0,0.00016921,2]
[403859756,1769605843034,-319.09148366,0.00016921,2]
[403859757,1769605843044,-500.0,0.00016921,2]
[403859758,1769605843054,-1000.0,0.00016921,2]
[403859759,1769605843063,-447.0136646,0.00016921,2]
[403859760,1769605843076,-1001.32757579,0.00016921,2]
[403859761,1769605843085,-1000.0,0.00016921,2]
[403859762,1769605843095,-1000.0,0.00016921,2]
[403859763,1769605843104,-1000.0,0.00016921,2]
[403859764,1769605843114,-401.29561037,0.00016921,2]
[403859765,1769605843123,-1000.0,0.00016921,2]
[403859766,1769605843133,-500.0,0.00016921,2]
[403859767,1769605843142,-1000.0,0.00016921,2]
[403859768,1769605843151,-500.0,0.00016921,2]
[403859769,1769605843161,-250.0,0.00017,2]
[403859770,1769605843170,-500.0,0.00017025,2]
[403859771,1769605843180,-1309.5,0.00017029,2]
[403859772,1769605843190,-1000.0,0.00017112,2]
[403859773,1769605843204,-3630.0362154,0.00017159,2]
[403859774,1769605843214,-9558.21524813,0.00017159,2]
[403859775,1769605843223,-4033.9,0.00017187,2]
[403859776,1769605843234,-807.02,0.0001728,2]
[403859777,1769605843243,-500.0,0.00017299,2]
[403859778,1769605843252,-1309.5,0.00017303,2]
[403859779,1769605843261,-7113.0,0.00017452,2]
[403859780,1769605843273,-1006.04611784,0.00017468,2]
[403859781,1769605843282,-1500.0,0.00017468,2]
[403859782,1769605843291,-1002.25758494,0.00017468,2]
[403859783,1769605843300,-534.24079626,0.00017468,2]
[403859784,1769605843309,-1005.52548547,0.00017468,2]
[403859785,1769605843319,-1500.0,0.00017468,2]
[403859786,1769605843328,-1500.0,0.00017468,2]
[403859787,1769605843338,-1500.0,0.00017468,2]
[403859788,1769605843347,-1577.35916362,0.00017468,2]
[403859789,1769605843356,-501.79128109,0.00017468,2]
[403859790,1769605843366,-1500.0,0.00017468,2]
[403859791,1769605843376,-1018.6229257,0.00017468,2]
[403859792,1769605843386,-432.41323937,0.00017468,2]
[403859793,1769605843396,-1500.0,0.00017468,2]
[403859794,1769605843405,-1500.0,0.00017468,2]
[403859795,1769605843415,-501.39520865,0.00017468,2]
[403859796,1769605843425,-1500.0,0.00017468,2]
[403859797,1769605843435,-500.0,0.00017478,2]
[403859798,1769605843445,-1309.5,0.00017577,2]
[403859799,1769605843456,-3438.0,0.00017644,2]
[403859800,1769605843466,-736.0,0.00017649,2]
[403859801,1769605843475,-150.0,0.00017699,2]
[403859802,1769605843486,-150.0,0.00017699,2]
[403859803,1769605843497,-150.0,0.00017699,2]
[403859804,1769605843507,-150.0,0.00017699,2]
[403859805,1769605843516,-200.0,0.00017699,2]
[403859806,1769605843526,-150.0,0.00017699,2]
[403859807,1769605843535,-150.0,0.00017699,2]
[403859808,1769605843544,-150.0,0.00017699,2]
[403859809,1769605843553,-150.0,0.00017699,2]
[403859810,1769605843563,-150.0,0.00017699,2]
[403859811,1769605843574,-3438.0,0.00017706,2]
[403859812,1769605843583,-1000.0,0.00017709,2]
[403859813,1769605843593,-150.0,0.00017754,2]
[403859814,1769605843602,-150.0,0.00017754,2]
[403859815,1769605843612,-150.0,0.00017754,2]
[403859816,1769605843621,-150.0,0.00017754,2]
[403859817,1769605843631,-150.0,0.00017754,2]
[403859818,1769605843640,-150.0,0.00017754,2]
[403859819,1769605843649,-150.0,0.00017754,2]
[403859820,1769605843658,-3438.0,0.00017784,2]
[403859821,1769605843667,-500.0,0.00017808,2]
[403859822,1769605843677,-200.0,0.00017809,2]
[403859823,1769605843687,-150.0,0.00017809,2]
[403859824,1769605843698,-150.0,0.00017809,2]
[403859825,1769605843708,-150.0,0.00017809,2]
[403859826,1769605843717,-150.0,0.00017809,2]
[403859827,1769605843727,-250.0,0.00017809,2]
[403859828,1769605843736,-150.0,0.00017809,2]
[403859829,1769605843746,-3438.0,0.00017834,2]
[403859830,1769605843756,-1309.5,0.00017851,2]
[403859831,1769605843765,-500.0,0.00017863,2]
[403859832,1769605843775,-3438.0,0.00017863,2]
[403859833,1769605843785,-150.0,0.00017863,2]
[403859834,1769605843794,-150.0,0.00017863,2]
[403859835,1769605843804,-150.0,0.00017863,2]
[403859836,1769605843814,-150.0,0.00017863,2]
[403859837,1769605843824,-150.0,0.00017863,2]
[403859838,1769605843834,-3438.0,0.00017914,2]
[403859839,1769605843843,-500.0,0.00017918,2]
[403859840,1769605843852,-234.49090466,0.00017918,2]
[403859841,1769605843861,-150.0,0.00017918,2]
[403859842,1769605843871,-250.0,0.00017918,2]
[403859843,1769605843880,-250.0,0.00017918,2]
[403859844,1769605843891,-250.0,0.00017918,2]
[403859845,1769605843900,-3438.0,0.00017966,2]
[403859846,1769605843909,-500.0,0.00017972,2]
[403859847,1769605843919,-250.0,0.00017973,2]
[403859848,1769605843929,-506.0,0.00018,2]
[403859849,1769605843939,-1001.11024626,0.00018016,2]
[403859850,1769605843948,-1014.21537798,0.00018016,2]
[403859851,1769605843958,-503.29314635,0.00018016,2]
[403859853,1769605843967,-1008.89888309,0.00018016,2]
[403859855,1769605843977,-1000.0,0.00018016,2]
[403859857,1769605843986,-507.46801581,0.00018016,2]
[403859859,1769605843995,-3438.0,0.00018049,2]
[403859861,1769605844004,-300.0,0.00018082,2]
[403859863,1769605844013,-534.66,0.00018104,2]
[403859865,1769605844023,-3438.0,0.00018122,2]
[403859866,1769605844032,-1309.53498439,0.00018125,2]
[403859867,1769605844041,-150.00184448,0.00018201,3]
[403859868,1769605844051,-3438.0,0.00018245,2]
[403859869,1769605844061,-3438.0,0.0001826,2]
[403859870,1769605844071,-1000.0,0.00018306,2]
[403859871,1769605844080,-534.66,0.00018378,2]
[403859872,1769605844090,-250.0,0.00018499,2]
[403859873,1769605844100,-3438.0,0.00018519,2]
[403859874,1769605844109,-1563.0,0.00018521,2]
[403859875,1769605844119,-3438.0,0.00018604,2]
[403859876,1769605844128,-534.66,0.00018652,2]
[403859877,1769605844138,-3438.0,0.00018716,2]
[403859878,1769605844147,-3438.0,0.00018756,2]
[403859879,1769605844156,-158.72551505,0.00018762,2]
[403859880,1769605844165,-3438.0,0.00018794,2]
[403859881,1769605844175,-3438.0,0.00018835,2]
[403859882,1769605844184,-3438.0,0.00018879,2]
[403859884,1769605844198,-4214.42003513,0.000189,2]
[403859886,1769605844207,-3438.0,0.00018912,2]
[403859887,1769605844216,-534.66,0.00018926,2]
[403859888,1769605844225,-3438.0,0.00018958,2]
[403859889,1769605844235,-300.0,0.00019,2]
[403859890,1769605844244,-807.02,0.00019008,2]
[403859892,1769605844254,-3438.0,0.00019019,2]
[403859894,1769605844263,-1053.0,0.00019049,2]
[403859895,1769605844272,-200.0,0.00019082,2]
[403859896,1769605844284,-895.3146752,0.00019124,2]
[403859897,1769605844293,-3438.0,0.00019135,2]
[403859898,1769605844302,-3438.0,0.00019152,2]
[403859899,1769605844312,-500.0,0.00019178,2]
[403859900,1769605844322,-299.19504724,0.00019178,2]
[403859901,1769605844331,-500.0,0.00019178,2]
[403859902,1769605844340,-500.0,0.00019178,2]
[403859903,1769605844350,-534.67,0.000192,2]
[403859904,1769605844359,-3438.0,0.00019218,2]
[403859905,1769605844368,-3438.0,0.00019318,2]
[403859906,1769605844378,-153.29024363,0.00019486,2]
[403859907,1769605844388,-4033.9,0.00019552,2]
[403859908,1769605844397,-150.00184448,0.00019614,7]
[403859909,1769605844407,-729.53567129,0.00019734,2]
[403859910,1769605844416,-2987.85380605,0.00020163,2]
[403859911,1769605844426,-209.28929397,0.00020278,2]
[403859912,1769605844436,-3630.0362154,0.00020401,2]
[403859913,1769605844445,-9558.21524813,0.00020401,2]
[403859914,1769605844455,-487.62,0.0002042,2]
[403859915,1769605844464,-487.62,0.00020694,2]
[403859916,1769605844474,-807.02,0.00020736,2]
[403859917,1769605844484,-1278.35,0.00020951,2]
[403859918,1769605844494,-487.62,0.00020968,2]
[403859919,1769605844503,-298.56144985,0.00020999,2]
[403859920,1769605844513,-378.25,0.00021,7]
[403859921,1769605844523,-150.00184448,0.00021028,12]
[403859922,1769605844532,-12520.94,0.00021068,2]
[403859923,1769605844542,-353.18951382,0.00021215,2]
[403859924,1769605844551,-487.62,0.00021242,2]
[403859925,1769605844561,-155.55034979,0.00021273,2]
[403859926,1769605844572,-292.76,0.00021516,2]
[403859927,1769605844582,-4838.53,0.00021551,2]
[403859928,1769605844591,-4033.9,0.00021916,2]
[403859929,1769605844600,-800.0,0.00021918,4]
[403859930,1769605844610,-800.0,0.00021918,4]
[403859931,1769605844619,-800.0,0.00021918,4]
[403859932,1769605844628,-800.0,0.00021918,4]
[403859933,1769605844638,-800.0,0.00021918,4]
[403859934,1769605844647,-800.0,0.00021918,4]
[403859935,1769605844657,-800.0,0.00021918,4]
[403859936,1769605844667,-800.0,0.00021918,4]
[403859937,1769605844676,-500.93909876,0.00021973,2]
[403859938,1769605844685,-500.0,0.00021973,2]
[403859939,1769605844695,-500.7746919,0.00021973,2]
[403859940,1769605844704,-161.84465629,0.00021973,2]
[403859941,1769605844713,-500.0,0.00021973,2]
[403859942,1769605844723,-500.0,0.00021973,2]
[403859943,1769605844732,-500.79595583,0.00021973,2]
[403859944,1769605844741,-500.46570167,0.00021973,2]
[403859945,1769605844751,-500.97270712,0.00021973,2]
[403859946,1769605844761,-161.40469099,0.00021973,2]
[403859947,1769605844770,-500.0,0.00021973,2]
[403859948,1769605844781,-500.0,0.00021973,2]
[403859949,1769605844790,-500.0,0.00021973,2]
[403859950,1769605844800,-500.0,0.00021973,2]
[403859951,1769605844810,-208.25001781,0.00021973,2]
[403859952,1769605844819,-250.07737695,0.00021973,2]
[403859953,1769605844828,-500.0,0.00021973,2]
[403859954,1769605844838,-500.0,0.00021973,2]
[403859955,1769605844848,-500.0,0.00021973,2]
[403859956,1769605844859,-501.21016651,0.00021973,2]
[403859957,1769605844868,-500.56756303,0.00021973,2]
[403859958,1769605845133,-500.0,0.00021973,2]
[403859959,1769605845143,-500.0,0.00021973,2]
[403859960,1769605845154,-268.35638864,0.00021973,2]
[403859961,1769605845164,-333.38297548,0.00021973,2]
[403859962,1769605845174,-500.36677544,0.00021973,2]
[403859963,1769605845184,-158.16850071,0.00021973,2]
[403859964,1769605845195,-500.0,0.00021973,2]
[403859965,1769605845204,-161.06844262,0.00021973,2]
[403859966,1769605845219,-159.95483821,0.00021973,2]
[403859967,1769605845228,-500.0,0.00021973,2]
[403859968,1769605845238,-500.0,0.00021973,2]
[403859969,1769605845248,-500.29215456,0.00021973,2]
[403859970,1769605845258,-500.0,0.00021973,2]
[403859971,1769605845268,-500.0,0.00021973,2]
[403859972,1769605845277,-500.0,0.00021973,2]
[403859973,1769605845289,-500.48796641,0.00021973,2]
[403859974,1769605845298,-160.05102853,0.00021973,2]
[403859975,1769605845307,-512.07559774,0.00021973,2]
[403859976,1769605845316,-500.0,0.00021973,2]
[403859977,1769605845326,-500.0,0.00021973,2]
[403859978,1769605845335,-500.63567767,0.00021973,2]
[403859979,1769605845345,-500.30198217,0.00021973,2]
[403859980,1769605845355,-500.12495376,0.00021973,2]
[403859981,1769605845367,-340.18884968,0.00021973,2]
[403859982,1769605845376,-500.83674471,0.00021973,2]